[Event "World Prestigious University 2019"]
[Site "Tianjin"]
[Date "2019.11.28"]
[Round "9.5"]
[White "Chandra, Akshat"]
[Black "Wei, Siyu"]
[Result "1-0"]
[WhiteElo "2524"]
[BlackElo "2106"]
[PlyCount "101"]
[EventDate "2019.11.26"]
[EventType "team-tourn"]
[EventCountry "CHN"]
[TimeControl "1500+10"]
[WhiteClock "0:00:26"]
[BlackClock "0:03:32"]

1. d4 {[%emt 0:00:27]} d5 {[%emt 0:00:00]} 2. c4 {[%emt 0:00:11]} c6 {[%emt 0:00:08]} 3. cxd5 {[%emt 0:00:26]} cxd5 {[%emt 0:00:03]} 4. Bf4 {[%emt 0:00:02]} Nc6 {[%emt 0:00:25]} 5. e3 {[%emt 0:00:18]} Nf6 {[%emt 0:00:19]} 6. Nc3 {[%emt 0:00:02]} e6 {[%emt 0:00:23]} 7. Bd3 {[%emt 0:00:16]} Bd6 {[%emt 0:00:12]} 8. Bxd6 {[%emt 0:00:05]} Qxd6 {[%emt 0:00:03]} 9. f4 {[%emt 0:00:05]} O-O {[%emt 0:01:01]} 10. Nf3 {[%emt 0:00:02]} a6 {[%emt 0:03:21]} 11. O-O {[%emt 0:00:08]} b5 {[%emt 0:00:04]} 12. Ne5 {[%emt 0:00:49]} Bb7 {[%emt 0:00:20]} 13. Rc1 {[%emt 0:00:04]} Rac8 {[%emt 0:01:01]} 14. Qe1 {[%emt 0:00:59]} Ne7 {[%emt 0:00:54]} 15. Bb1 {[%emt 0:03:13]} Ne4 {[%emt 0:00:29]} 16. Nd3 {[%emt 0:00:12]} Nxc3 {[%emt 0:07:01]} 17. Rxc3 {[%emt 0:00:02]} Rxc3 {[%emt 0:00:03]} 18. Qxc3 {[%emt 0:00:03]} Rc8 {[%emt 0:01:20]} 19. Nc5 {[%emt 0:00:09]} Qb6 {[%emt 0:00:26]} 20. b4 {[%emt 0:00:28]} Rc7 {[%emt 0:01:55]} 21. g4 {[%emt 0:00:41]} Nc8 {[%emt 0:00:46]} 22. Qc2 {[%emt 0:04:08]} g6 {[%emt 0:00:08]} 23. f5 {[%emt 0:00:02]} exf5 {[%emt 0:00:13]} 24. gxf5 {[%emt 0:00:01]} Nd6 {[%emt 0:02:35]} 25. fxg6 {[%emt 0:03:09]} fxg6 {[%emt 0:01:50]} 26. Rf6 {[%emt 0:03:20]} Rf7 {[%emt 0:00:24]} 27. Qf2 {[%emt 0:00:25]} Qc7 {[%emt 0:03:19]} 28. Qf4 {[%emt 0:00:10]} Rxf6 {[%emt 0:00:13]} 29. Qxf6 {[%emt 0:00:02]} Bc8 {[%emt 0:00:11]} 30. Qe5 {[%emt 0:00:20]} Qc6 {[%emt 0:00:41]} 31. Bd3 {[%emt 0:03:02]} Nf7 {[%emt 0:00:03]} 32. Qe7 {[%emt 0:00:20]} Qd6 {[%emt 0:00:05]} 33. Qh4 {[%emt 0:02:38]} Qd8 {[%emt 0:00:06]} 34. Qg3 {[%emt 0:00:35]} Qd6 {[%emt 0:00:16]} 35. Bf1 {[%emt 0:00:09]} Qxg3+ {[%emt 0:00:18]} 36. hxg3 {[%emt 0:00:01]} Ng5 {[%emt 0:00:10]} 37. Bg2 {[%emt 0:00:03]} Ne4 {[%emt 0:00:02]} 38. Nxe4 {[%emt 0:00:48]} dxe4 {[%emt 0:00:02]} 39. Bxe4 {[%emt 0:00:02]} Kf7 {[%emt 0:00:02]} 40. Bd5+ {[%emt 0:00:17]} Ke7 {[%emt 0:00:19]} 41. e4 {[%emt 0:00:05]} Kd6 {[%emt 0:00:22]} 42. Kf2 {[%emt 0:00:04]} g5 {[%emt 0:00:10]} 43. Bf7 {[%emt 0:00:25]} Ke7 {[%emt 0:00:12]} 44. Bh5 {[%emt 0:00:14]} Kd6 {[%emt 0:00:09]} 45. Ke3 {[%emt 0:00:11]} Bh3 {[%emt 0:00:05]} 46. e5+ {[%emt 0:00:19]} Kd7 {[%emt 0:00:16]} 47. d5 {[%emt 0:00:14]} Bf1 {[%emt 0:00:03]} 48. a3 {[%emt 0:00:05]} Bc4 {[%emt 0:00:12]} 49. Bg4+ {[%emt 0:00:03]} Kc7 {[%emt 0:00:09]} 50. Kd4 {[%emt 0:00:02]} Ba2 {[%emt 0:00:05]} 51. Kc5 {[%emt 0:00:02]} 1-0

[Event "World Prestigious University 2019"]
[Site "Tianjin"]
[Date "2019.11.28"]
[Round "9.6"]
[White "Lu, Hongyi"]
[Black "Derakhshani, Dorsa"]
[Result "1-0"]
[WhiteElo "1862"]
[BlackElo "2277"]
[PlyCount "77"]
[EventDate "2019.11.26"]
[EventType "team-tourn"]
[EventCountry "CHN"]
[TimeControl "1500+10"]
[WhiteClock "0:00:11"]
[BlackClock "0:00:33"]

1. e4 {[%emt 0:00:00]} e5 {[%emt 0:00:00]} 2. Nf3 {[%emt 0:00:00]} Nc6 {[%emt 0:00:00]} 3. Bb5 {[%emt 0:00:00]} g6 {[%emt 0:00:15]} 4. O-O {[%emt 0:00:57]} Bg7 {[%emt 0:00:12]} 5. c3 {[%emt 0:00:11]} d6 {[%emt 0:00:21]} 6. h3 {[%emt 0:00:17]} a6 {[%emt 0:00:12]} 7. Ba4 {[%emt 0:00:13]} Nge7 {[%emt 0:00:47]} 8. d4 {[%emt 0:01:12]} O-O {[%emt 0:00:19]} 9. Re1 {[%emt 0:01:06]} h6 {[%emt 0:00:21]} 10. Be3 {[%emt 0:02:08]} Kh7 {[%emt 0:02:03]} 11. Nbd2 {[%emt 0:00:50]} f5 {[%emt 0:00:25]} 12. exf5 {[%emt 0:02:15]} gxf5 {[%emt 0:01:09]} 13. dxe5 {[%emt 0:00:26]} dxe5 {[%emt 0:00:43]} 14. Bc5 {[%emt 0:00:58]} e4 {[%emt 0:02:02]} 15. Bxc6 {[%emt 0:01:45]} bxc6 {[%emt 0:01:14]} 16. Nd4 {[%emt 0:01:54]} Rf6 {[%emt 0:00:53]} 17. Nf1 {[%emt 0:03:12]} Ng6 {[%emt 0:04:58]} 18. Ng3 {[%emt 0:00:40]} Ne5 {[%emt 0:02:02]} 19. Nh5 {[%emt 0:01:13]} Rf7 {[%emt 0:00:59]} 20. Nf4 {[%emt 0:00:42]} Qg5 {[%emt 0:00:31]} 21. g3 {[%emt 0:01:52]} Bd7 {[%emt 0:02:26]} 22. Kh1 {[%emt 0:01:33]} Re8 {[%emt 0:01:50]} 23. Qe2 {[%emt 0:01:41]} Ng6 {[%emt 0:00:36]} 24. Qe3 {[%emt 0:02:19]} Be5 {[%emt 0:00:52]} 25. Nde2 {[%emt 0:00:16]} h5 {[%emt 0:01:06]} 26. Nxg6 {[%emt 0:00:30]} Qxg6 {[%emt 0:00:04]} 27. Nf4 {[%emt 0:00:09]} Qg5 {[%emt 0:00:07]} 28. Rg1 {[%emt 0:00:09]} h4 {[%emt 0:00:09]} 29. Qe2 {[%emt 0:00:18]} hxg3 {[%emt 0:01:05]} 30. Rxg3 {[%emt 0:00:39]} Qh6 {[%emt 0:00:18]} 31. Be3 {[%emt 0:00:03]} c5 {[%emt 0:01:51]} 32. Rag1 {[%emt 0:00:10]} Bb5 {[%emt 0:00:06]} 33. c4 {[%emt 0:00:25]} Bc6 {[%emt 0:00:08]} 34. b3 {[%emt 0:00:03]} Bd4 {[%emt 0:00:19]} 35. Rg6 {[%emt 0:00:13]} Qh4 {[%emt 0:00:06]} 36. Rxc6 {[%emt 0:00:13]} Rg8 {[%emt 0:00:15]} 37. Rxg8 {[%emt 0:00:16]} Kxg8 {[%emt 0:00:02]} 38. Qh5 {[%emt 0:00:06]} Qxh5 {[%emt 0:00:23]} 39. Nxh5 {[%emt 0:00:03]} 1-0

[Event "World Prestigious University 2019"]
[Site "Tianjin"]
[Date "2019.11.28"]
[Round "9.7"]
[White "Kukhmazov, Arsen"]
[Black "Fernandez, Daniel Howard"]
[Result "1-0"]
[WhiteElo "2377"]
[BlackElo "2444"]
[PlyCount "77"]
[EventDate "2019.11.26"]
[EventType "team-tourn"]
[EventCountry "CHN"]
[TimeControl "1500+10"]
[WhiteClock "0:00:14"]
[BlackClock "0:21:35"]

1. d4 {[%emt 0:00:00]} Nf6 {[%emt 0:00:00]} 2. c4 {[%emt 0:00:00]} g6 {[%emt 0:00:00]} 3. g3 {[%emt 0:00:00]} Bg7 {[%emt 0:00:06]} 4. Bg2 {[%emt 0:00:00]} O-O {[%emt 0:01:14]} 5. Nc3 {[%emt 0:00:00]} d6 {[%emt 0:00:47]} 6. Nf3 {[%emt 0:00:00]} Nbd7 {[%emt 0:01:49]} 7. O-O {[%emt 0:00:00]} e5 {[%emt 0:00:08]} 8. h3 {[%emt 0:00:00]} c6 {[%emt 0:00:39]} 9. e4 {[%emt 0:00:00]} Nh5 {[%emt 0:01:19]} 10. Re1 {[%emt 0:00:58]} Qe8 {[%emt 0:01:39]} 11. dxe5 {[%emt 0:03:42]} dxe5 {[%emt 0:00:21]} 12. b3 {[%emt 0:00:02]} Nc5 {[%emt 0:00:41]} 13. Ba3 {[%emt 0:00:07]} Qe7 {[%emt 0:01:57]} 14. Na4 {[%emt 0:00:06]} b6 {[%emt 0:00:23]} 15. Nxc5 {[%emt 0:00:56]} bxc5 {[%emt 0:00:02]} 16. Qd2 {[%emt 0:00:06]} Rd8 {[%emt 0:02:26]} 17. Qa5 {[%emt 0:00:01]} Be6 {[%emt 0:01:47]} 18. Bxc5 {[%emt 0:00:15]} Qd7 {[%emt 0:00:15]} 19. Ng5 {[%emt 0:00:18]} Nf6 {[%emt 0:01:06]} 20. Nxe6 {[%emt 0:00:13]} Qxe6 {[%emt 0:00:16]} 21. Rad1 {[%emt 0:00:02]} Rd7 {[%emt 0:02:13]} 22. h4 {[%emt 0:00:04]} Bf8 {[%emt 0:01:59]} 23. Rxd7 {[%emt 0:00:36]} Nxd7 {[%emt 0:01:16]} 24. Be3 {[%emt 0:00:02]} Qd6 {[%emt 0:01:13]} 25. Bf3 {[%emt 0:00:19]} c5 {[%emt 0:01:41]} 26. Rd1 {[%emt 0:00:21]} Qc6 {[%emt 0:00:24]} 27. Qb5 {[%emt 0:00:35]} Qxb5 {[%emt 0:00:28]} 28. cxb5 {[%emt 0:00:01]} Nf6 {[%emt 0:00:38]} 29. g4 {[%emt 0:00:10]} Rb8 {[%emt 0:01:20]} 30. a4 {[%emt 0:00:07]} Be7 {[%emt 0:00:32]} 31. g5 {[%emt 0:00:04]} Ne8 {[%emt 0:01:02]} 32. Rd7 {[%emt 0:00:01]} Bd6 {[%emt 0:00:22]} 33. Rxa7 {[%emt 0:00:05]} Nc7 {[%emt 0:00:04]} 34. Bg4 {[%emt 0:00:14]} Rd8 {[%emt 0:00:15]} 35. b6 {[%emt 0:00:08]} Ne8 {[%emt 0:00:15]} 36. a5 {[%emt 0:00:03]} Bb8 {[%emt 0:00:10]} 37. Ra8 {[%emt 0:00:13]} Nd6 {[%emt 0:00:06]} 38. a6 {[%emt 0:00:02]} Nxe4 {[%emt 0:00:13]} 39. a7 {[%emt 0:00:04]} 1-0

[Event "World Prestigious University 2019"]
[Site "Tianjin"]
[Date "2019.11.28"]
[Round "9.8"]
[White "Behar, Joshua"]
[Black "Tarasov, Alexandr"]
[Result "0-1"]
[WhiteElo "1974"]
[BlackElo "2348"]
[PlyCount "60"]
[EventDate "2019.11.26"]
[EventType "team-tourn"]
[EventCountry "CHN"]
[TimeControl "1500+10"]
[WhiteClock "0:00:47"]
[BlackClock "0:08:16"]

1. e4 {[%emt 0:00:00]} c6 {[%emt 0:00:00]} 2. Nf3 {[%emt 0:00:00]} d5 {[%emt 0:00:00]} 3. e5 {[%emt 0:00:01]} c5 {[%emt 0:00:56]} 4. c3 {[%emt 0:00:06]} Nc6 {[%emt 0:00:16]} 5. d4 {[%emt 0:00:02]} cxd4 {[%emt 0:01:01]} 6. cxd4 {[%emt 0:00:07]} Bg4 {[%emt 0:01:01]} 7. Be3 {[%emt 0:02:30]} Qb6 {[%emt 0:01:27]} 8. Nbd2 {[%emt 0:00:41]} e6 {[%emt 0:00:36]} 9. Be2 {[%emt 0:01:31]} Nge7 {[%emt 0:02:11]} 10. O-O {[%emt 0:01:00]} Nf5 {[%emt 0:00:24]} 11. h3 {[%emt 0:00:08]} Bh5 {[%emt 0:02:48]} 12. Rc1 {[%emt 0:03:39]} Be7 {[%emt 0:02:18]} 13. Nb3 {[%emt 0:01:13]} O-O {[%emt 0:02:46]} 14. Nc5 {[%emt 0:01:42]} Nxe3 {[%emt 0:01:44]} 15. fxe3 {[%emt 0:00:05]} Bxc5 {[%emt 0:00:08]} 16. Rxc5 {[%emt 0:00:32]} Qxb2 {[%emt 0:00:26]} 17. Rb5 {[%emt 0:00:31]} Qa3 {[%emt 0:00:35]} 18. Bd3 {[%emt 0:00:57]} Bxf3 {[%emt 0:03:02]} 19. Rxf3 {[%emt 0:00:12]} Rac8 {[%emt 0:00:54]} 20. Rg3 {[%emt 0:01:52]} g6 {[%emt 0:01:11]} 21. Rb3 {[%emt 0:00:43]} Qxa2 {[%emt 0:02:23]} 22. h4 {[%emt 0:01:30]} Na5 {[%emt 0:01:19]} 23. Rb1 {[%emt 0:00:15]} Rc7 {[%emt 0:00:33]} 24. h5 {[%emt 0:00:18]} Rfc8 {[%emt 0:00:33]} 25. Qf1 {[%emt 0:01:31]} Qxb1 {[%emt 0:00:15]} 26. Bxb1 {[%emt 0:00:07]} Rc1 {[%emt 0:00:01]} 27. Rf3 {[%emt 0:00:01]} Rxf1+ {[%emt 0:00:02]} 28. Rxf1 {[%emt 0:00:01]} gxh5 {[%emt 0:00:15]} 29. Kh2 {[%emt 0:00:10]} Nc4 {[%emt 0:00:07]} 30. Rf3 {[%emt 0:00:19]} Nd2 {[%emt 0:00:01]} 0-1

[Event "World Prestigious University 2019"]
[Site "Tianjin"]
[Date "2019.11.28"]
[Round "9.10"]
[White "Green, Michael L"]
[Black "Grigory, Oparin"]
[Result "0-1"]
[WhiteElo "2073"]
[BlackElo "2660"]
[PlyCount "52"]
[EventDate "2019.11.26"]
[EventType "team-tourn"]
[EventCountry "CHN"]
[TimeControl "1500+10"]
[WhiteClock "0:13:04"]
[BlackClock "0:09:47"]

1. Nf3 {[%emt 0:00:00]} f5 {[%emt 0:00:00]} 2. d4 {[%emt 0:00:00]} Nf6 {[%emt 0:00:00]} 3. h3 {[%emt 0:00:00]} d6 {[%emt 0:00:16]} 4. g4 {[%emt 0:00:14]} fxg4 {[%emt 0:00:05]} 5. hxg4 {[%emt 0:00:01]} Bxg4 {[%emt 0:00:07]} 6. Qd3 {[%emt 0:00:02]} Qd7 {[%emt 0:01:57]} 7. e4 {[%emt 0:01:01]} Nc6 {[%emt 0:03:35]} 8. Ng5 {[%emt 0:00:03]} d5 {[%emt 0:02:04]} 9. e5 {[%emt 0:02:21]} Bf5 {[%emt 0:00:04]} 10. Qe3 {[%emt 0:01:20]} Ne4 {[%emt 0:02:36]} 11. e6 {[%emt 0:05:58]} Bxe6 {[%emt 0:00:25]} 12. Nxe6 {[%emt 0:00:03]} Qxe6 {[%emt 0:00:02]} 13. Bh3 {[%emt 0:00:20]} Qf6 {[%emt 0:01:08]} 14. c3 {[%emt 0:01:06]} e5 {[%emt 0:00:02]} 15. f3 {[%emt 0:01:23]} Qh4+ {[%emt 0:01:03]} 16. Kd1 {[%emt 0:02:34]} Nf2+ {[%emt 0:00:02]} 17. Kc2 {[%emt 0:00:02]} Nxh1 {[%emt 0:00:02]} 18. Be6 {[%emt 0:00:12]} exd4 {[%emt 0:00:37]} 19. Qe2 {[%emt 0:00:21]} Qf2 {[%emt 0:00:14]} 20. Qxf2 {[%emt 0:01:13]} Nxf2 {[%emt 0:00:03]} 21. Bf4 {[%emt 0:00:09]} Bd6 {[%emt 0:00:34]} 22. Bg5 {[%emt 0:00:02]} h6 {[%emt 0:00:43]} 23. Bh4 {[%emt 0:00:02]} d3+ {[%emt 0:00:02]} 24. Kc1 {[%emt 0:00:45]} Bf4+ {[%emt 0:00:21]} 25. Nd2 {[%emt 0:00:01]} Ne5 {[%emt 0:00:08]} 26. Bxd5 {[%emt 0:00:20]} c6 {[%emt 0:00:06]} 0-1

[Event "World Prestigious University 2019"]
[Site "Tianjin"]
[Date "2019.11.28"]
[Round "9.11"]
[White "Dmitry, Gordievskiy"]
[Black "Zhong, Wei"]
[Result "1-0"]
[WhiteElo "2590"]
[BlackElo "1804"]
[PlyCount "49"]
[EventDate "2019.11.26"]
[EventType "team-tourn"]
[EventCountry "CHN"]
[TimeControl "1500+10"]
[WhiteClock "0:00:26"]
[BlackClock "0:08:46"]

1. Nf3 {[%emt 0:00:00]} d5 {[%emt 0:00:29]} 2. e3 {[%emt 0:00:09]} Nf6 {[%emt 0:01:02]} 3. c4 {[%emt 0:00:02]} c6 {[%emt 0:00:10]} 4. Nc3 {[%emt 0:00:03]} e6 {[%emt 0:01:17]} 5. b3 {[%emt 0:00:06]} Nbd7 {[%emt 0:00:14]} 6. Bb2 {[%emt 0:00:03]} Bd6 {[%emt 0:01:31]} 7. Qc2 {[%emt 0:00:06]} O-O {[%emt 0:00:15]} 8. h3 {[%emt 0:00:18]} Re8 {[%emt 0:00:55]} 9. g4 {[%emt 0:00:22]} dxc4 {[%emt 0:02:06]} 10. bxc4 {[%emt 0:02:13]} e5 {[%emt 0:03:27]} 11. g5 {[%emt 0:00:59]} Nh5 {[%emt 0:00:38]} 12. Ne4 {[%emt 0:00:09]} Bf8 {[%emt 0:01:58]} 13. Be2 {[%emt 0:00:19]} f5 {[%emt 0:01:36]} 14. gxf6 {[%emt 0:00:37]} Nhxf6 {[%emt 0:00:17]} 15. Bd3 {[%emt 0:08:31]} g6 {[%emt 0:04:19]} 16. Rg1 {[%emt 0:00:30]} Nh5 {[%emt 0:03:00]} 17. Neg5 {[%emt 0:01:07]} Ndf6 {[%emt 0:03:25]} 18. Nxe5 {[%emt 0:00:31]} Rxe5 {[%emt 0:00:57]} 19. Bxe5 {[%emt 0:00:06]} Bg7 {[%emt 0:00:15]} 20. Nxh7 {[%emt 0:04:02]} Nxh7 {[%emt 0:00:04]} 21. Bxg6 {[%emt 0:00:02]} N5f6 {[%emt 0:00:18]} 22. Bxh7+ {[%emt 0:00:04]} Kf8 {[%emt 0:00:14]} 23. Rxg7 {[%emt 0:00:01]} Kxg7 {[%emt 0:00:01]} 24. Qg6+ {[%emt 0:00:02]} Kf8 {[%emt 0:00:06]} 25. Bxf6 {[%emt 0:00:02]} 1-0

[Event "World Prestigious University 2019"]
[Site "Tianjin"]
[Date "2019.11.28"]
[Round "9.12"]
[White "Serbanescu, Diana-Maria"]
[Black "Wang, Nancy"]
[Result "1-0"]
[WhiteElo "1990"]
[BlackElo "1823"]
[PlyCount "147"]
[EventDate "2019.11.26"]
[EventType "team-tourn"]
[EventCountry "CHN"]
[TimeControl "1500+10"]
[WhiteClock "0:01:43"]
[BlackClock "0:01:23"]

1. e4 {[%emt 0:00:00]} c5 {[%emt 0:00:00]} 2. c3 {[%emt 0:00:00]} g6 {[%emt 0:00:00]} 3. g3 {[%emt 0:00:51]} Bg7 {[%emt 0:00:22]} 4. Bg2 {[%emt 0:00:02]} Nc6 {[%emt 0:00:26]} 5. d3 {[%emt 0:00:07]} d6 {[%emt 0:00:28]} 6. Ne2 {[%emt 0:00:10]} e5 {[%emt 0:01:09]} 7. O-O {[%emt 0:00:09]} Nge7 {[%emt 0:00:03]} 8. Be3 {[%emt 0:00:25]} O-O {[%emt 0:01:20]} 9. Qd2 {[%emt 0:01:03]} b5 {[%emt 0:04:52]} 10. Na3 {[%emt 0:00:34]} Rb8 {[%emt 0:00:18]} 11. b4 {[%emt 0:00:54]} cxb4 {[%emt 0:01:06]} 12. cxb4 {[%emt 0:00:01]} Nd4 {[%emt 0:04:48]} 13. Nxd4 {[%emt 0:01:02]} exd4 {[%emt 0:00:02]} 14. Bh6 {[%emt 0:01:47]} Be6 {[%emt 0:00:51]} 15. Bxg7 {[%emt 0:03:14]} Kxg7 {[%emt 0:00:03]} 16. Nc2 {[%emt 0:00:15]} Qb6 {[%emt 0:00:23]} 17. f4 {[%emt 0:00:31]} f5 {[%emt 0:02:42]} 18. Qf2 {[%emt 0:01:06]} fxe4 {[%emt 0:01:48]} 19. Qxd4+ {[%emt 0:02:47]} Kg8 {[%emt 0:01:43]} 20. Qxb6 {[%emt 0:01:08]} Rxb6 {[%emt 0:00:03]} 21. dxe4 {[%emt 0:00:02]} Rc8 {[%emt 0:00:43]} 22. Nd4 {[%emt 0:00:18]} Bc4 {[%emt 0:00:16]} 23. Rfd1 {[%emt 0:00:18]} Kf7 {[%emt 0:00:42]} 24. Rd2 {[%emt 0:01:13]} Ra6 {[%emt 0:00:16]} 25. a3 {[%emt 0:00:46]} Rd8 {[%emt 0:00:19]} 26. Kf2 {[%emt 0:01:00]} Nc6 {[%emt 0:01:35]} 27. Nxc6 {[%emt 0:02:49]} Rxc6 {[%emt 0:00:02]} 28. e5 {[%emt 0:00:07]} d5 {[%emt 0:00:16]} 29. Rad1 {[%emt 0:00:39]} Ke6 {[%emt 0:00:09]} 30. Bh3+ {[%emt 0:01:09]} Ke7 {[%emt 0:00:03]} 31. Bg2 {[%emt 0:01:05]} Ke6 {[%emt 0:00:02]} 32. Ke3 {[%emt 0:00:15]} Ra6 {[%emt 0:00:29]} 33. Ra1 {[%emt 0:00:04]} h6 {[%emt 0:00:25]} 34. Kd4 {[%emt 0:00:29]} Ke7 {[%emt 0:00:34]} 35. g4 {[%emt 0:00:43]} Rf8 {[%emt 0:00:56]} 36. Ke3 {[%emt 0:00:02]} Ke6 {[%emt 0:00:10]} 37. h4 {[%emt 0:01:49]} Rg8 {[%emt 0:00:39]} 38. Kd4 {[%emt 0:00:14]} Rg7 {[%emt 0:00:19]} 39. Bh3 {[%emt 0:00:23]} Ke7 {[%emt 0:00:43]} 40. Rg2 {[%emt 0:00:14]} g5 {[%emt 0:00:20]} 41. f5 {[%emt 0:00:18]} Rg8 {[%emt 0:00:12]} 42. h5 {[%emt 0:00:42]} Rc8 {[%emt 0:00:10]} 43. Rd2 {[%emt 0:00:16]} Rac6 {[%emt 0:00:10]} 44. Rc1 {[%emt 0:00:50]} a5 {[%emt 0:00:11]} 45. Bg2 {[%emt 0:00:05]} axb4 {[%emt 0:00:02]} 46. axb4 {[%emt 0:00:01]} Rd8 {[%emt 0:00:08]} 47. Ra1 {[%emt 0:00:12]} Bb3 {[%emt 0:00:06]} 48. Bf1 {[%emt 0:00:12]} Ba4 {[%emt 0:00:01]} 49. Be2 {[%emt 0:00:12]} Rd7 {[%emt 0:00:08]} 50. Rxa4 {[%emt 0:00:21]} bxa4 {[%emt 0:00:03]} 51. Bb5 {[%emt 0:00:01]} Rb6 {[%emt 0:00:39]} 52. Bxd7 {[%emt 0:00:05]} Kxd7 {[%emt 0:00:01]} 53. Kc5 {[%emt 0:00:02]} Rc6+ {[%emt 0:00:04]} 54. Kb5 {[%emt 0:00:05]} Rc8 {[%emt 0:00:18]} 55. Rxd5+ {[%emt 0:00:04]} Ke7 {[%emt 0:00:01]} 56. Kxa4 {[%emt 0:00:37]} Rc4 {[%emt 0:00:02]} 57. Kb5 {[%emt 0:00:10]} Rxg4 {[%emt 0:00:02]} 58. Kc5 {[%emt 0:00:22]} Rg1 {[%emt 0:00:13]} 59. b5 {[%emt 0:00:08]} Rc1+ {[%emt 0:00:03]} 60. Kb6 {[%emt 0:00:01]} g4 {[%emt 0:00:08]} 61. Rd4 {[%emt 0:00:12]} Rf1 {[%emt 0:00:18]} 62. Kc7 {[%emt 0:00:19]} Rc1+ {[%emt 0:00:06]} 63. Kb6 {[%emt 0:00:02]} Rf1 {[%emt 0:00:02]} 64. Kc6 {[%emt 0:00:01]} Rc1+ {[%emt 0:00:05]} 65. Kd5 {[%emt 0:00:01]} Rb1 {[%emt 0:00:04]} 66. f6+ {[%emt 0:00:09]} Kf7 {[%emt 0:00:06]} 67. Rxg4 {[%emt 0:00:03]} Rxb5+ {[%emt 0:00:02]} 68. Kd6 {[%emt 0:00:01]} Rb6+ {[%emt 0:00:05]} 69. Kc5 {[%emt 0:00:13]} Re6 {[%emt 0:00:09]} 70. Rg7+ {[%emt 0:00:11]} Kf8 {[%emt 0:00:00]} 71. Kd5 {[%emt 0:00:04]} Ra6 {[%emt 0:00:08]} 72. Rh7 {[%emt 0:00:07]} Ra5+ {[%emt 0:00:13]} 73. Ke6 {[%emt 0:00:03]} Ra6+ {[%emt 0:00:02]} 74. Kf5 {[%emt 0:00:02]} 1-0

[Event "World Prestigious University 2019"]
[Site "Tianjin"]
[Date "2019.11.28"]
[Round "9.13"]
[White "Wang, Yue"]
[Black "Daniel, Karim Abbas"]
[Result "1-0"]
[WhiteElo "2674"]
[BlackElo "2251"]
[PlyCount "111"]
[EventDate "2019.11.26"]
[EventType "team-tourn"]
[EventCountry "CHN"]
[TimeControl "1500+10"]
[WhiteClock "0:00:32"]
[BlackClock "0:00:57"]

1. e4 {[%emt 0:00:00]} c5 {[%emt 0:00:00]} 2. Nf3 {[%emt 0:00:00]} e6 {[%emt 0:00:00]} 3. d4 {[%emt 0:00:01]} cxd4 {[%emt 0:00:00]} 4. Nxd4 {[%emt 0:00:02]} Nc6 {[%emt 0:00:00]} 5. Nc3 {[%emt 0:00:05]} Qc7 {[%emt 0:00:00]} 6. Be3 {[%emt 0:00:06]} a6 {[%emt 0:00:00]} 7. Qf3 {[%emt 0:00:15]} Ne5 {[%emt 0:00:28]} 8. Qg3 {[%emt 0:00:13]} Nf6 {[%emt 0:00:36]} 9. O-O-O {[%emt 0:00:43]} h5 {[%emt 0:00:34]} 10. Nf3 {[%emt 0:02:56]} d6 {[%emt 0:01:01]} 11. Nxe5 {[%emt 0:00:02]} dxe5 {[%emt 0:00:01]} 12. f3 {[%emt 0:00:02]} h4 {[%emt 0:00:59]} 13. Qf2 {[%emt 0:00:12]} Nd7 {[%emt 0:00:02]} 14. Be2 {[%emt 0:02:27]} Bc5 {[%emt 0:01:51]} 15. Kb1 {[%emt 0:01:15]} Bxe3 {[%emt 0:00:10]} 16. Qxe3 {[%emt 0:00:02]} Nb6 {[%emt 0:02:32]} 17. Rd2 {[%emt 0:00:36]} Bd7 {[%emt 0:00:05]} 18. Qg5 {[%emt 0:00:05]} Kf8 {[%emt 0:00:50]} 19. Rhd1 {[%emt 0:00:13]} f6 {[%emt 0:01:47]} 20. Qe3 {[%emt 0:00:14]} Kf7 {[%emt 0:00:46]} 21. b3 {[%emt 0:02:43]} Rhd8 {[%emt 0:01:07]} 22. a4 {[%emt 0:00:22]} Bc6 {[%emt 0:00:38]} 23. Na2 {[%emt 0:00:48]} Be8 {[%emt 0:03:23]} 24. g3 {[%emt 0:02:17]} hxg3 {[%emt 0:00:31]} 25. hxg3 {[%emt 0:00:02]} Rxd2 {[%emt 0:00:14]} 26. Qxd2 {[%emt 0:00:05]} Rc8 {[%emt 0:00:31]} 27. a5 {[%emt 0:02:51]} Nd7 {[%emt 0:00:41]} 28. Bc4 {[%emt 0:00:02]} Nf8 {[%emt 0:00:32]} 29. Qb4 {[%emt 0:01:11]} Bb5 {[%emt 0:00:57]} 30. Rd3 {[%emt 0:00:24]} Bxc4 {[%emt 0:02:31]} 31. Rc3 {[%emt 0:00:03]} Qd7 {[%emt 0:00:20]} 32. Rxc4 {[%emt 0:00:17]} Rxc4 {[%emt 0:00:05]} 33. Qxc4 {[%emt 0:00:08]} Qd1+ {[%emt 0:00:23]} 34. Kb2 {[%emt 0:00:35]} Qd4+ {[%emt 0:00:08]} 35. Qc3 {[%emt 0:03:00]} Ke7 {[%emt 0:01:56]} 36. Ka3 {[%emt 0:00:37]} Kd6 {[%emt 0:00:46]} 37. Qe1 {[%emt 0:02:09]} Nd7 {[%emt 0:00:34]} 38. Nb4 {[%emt 0:01:30]} Qc5 {[%emt 0:00:48]} 39. Kb2 {[%emt 0:00:11]} Qxa5 {[%emt 0:00:24]} 40. Qd2+ {[%emt 0:00:16]} Kc5 {[%emt 0:00:48]} 41. Nxa6+ {[%emt 0:00:32]} Kb6 {[%emt 0:00:13]} 42. Qxd7 {[%emt 0:00:29]} Kxa6 {[%emt 0:00:12]} 43. Qxe6+ {[%emt 0:00:18]} Ka7 {[%emt 0:00:01]} 44. Qd7 {[%emt 0:00:22]} Qc5 {[%emt 0:00:14]} 45. g4 {[%emt 0:00:18]} Qe3 {[%emt 0:00:41]} 46. Qd3 {[%emt 0:01:03]} Qf2 {[%emt 0:00:17]} 47. b4 {[%emt 0:00:08]} Qe1 {[%emt 0:00:52]} 48. Kb3 {[%emt 0:00:07]} Qb1+ {[%emt 0:00:10]} 49. Kc4 {[%emt 0:00:02]} Qa2+ {[%emt 0:00:30]} 50. Qb3 {[%emt 0:00:40]} Qa1 {[%emt 0:00:17]} 51. Kd5 {[%emt 0:00:08]} b5 {[%emt 0:00:40]} 52. Ke6 {[%emt 0:00:05]} Qa6+ {[%emt 0:00:05]} 53. Kf7 {[%emt 0:00:02]} Qb7+ {[%emt 0:00:03]} 54. Kg6 {[%emt 0:00:02]} Kb6 {[%emt 0:00:21]} 55. Qe6+ {[%emt 0:00:04]} Ka7 {[%emt 0:00:03]} 56. Qf7 {[%emt 0:00:03]} 1-0